[Event "Fagernes GM-B 2019"]
[Site "Fagernes"]
[Date "2019.04.18"]
[Round "1"]
[White "Greenfeld, Alon"]
[Black "Levin, Felix"]
[Result "1-0"]
[ECO "D35"]
[WhiteElo "2514"]
[BlackElo "2476"]
[Annotator "ChessBase"]
[PlyCount "93"]
[EventDate "2019.04.14"]
[EventType "tourn"]
[EventCountry "NOR"]
[SourceTitle "playchess.com"]
[Source "ChessBase"]
[SourceQuality "1"]
[TimeControl "40/5400+30:1800+30"]

1. c4 {[%emt 0:00:37]} e6 {[%emt 0:00:00]} 2. Nc3 {[%emt 0:01:26]} d5 {[%emt 0:00:00]} 3. d4 {[%emt 0:00:25]} Nf6 {[%emt 0:00:53]} 4. cxd5 {[%emt 0:02:47]} exd5 {[%emt 0:00:08]} 5. Bg5 {[%emt 0:00:42]} c6 {[%emt 0:00:30]} 6. e3 {[%emt 0:01:36]} Bf5 {[%emt 0:01:14]} 7. Qf3 {[%emt 0:01:05]} Be6 {[%emt 0:00:09]} 8. Bxf6 {[%emt 0:04:54]} Qxf6 {[%emt 0:00:28]} 9. Qxf6 {[%emt 0:01:52]} gxf6 {[%emt 0:00:45]} 10. Bd3 {[%emt 0:06:12]} Nd7 {[%emt 0:00:35]} 11. Nge2 {[%emt 0:09:52]} Nb6 {[%emt 0:01:20]} 12. Nf4 {[%emt 0:09:37]} O-O-O {[%emt 0:11:24]} 13. O-O {[%emt 0:12:14]} Kb8 {[%emt 0:03:23]} 14. Nce2 {[%emt 0:02:47]} Nc8 {[%emt 0:02:54]} 15. Rfb1 {[%emt 0:11:29]} Nd6 {[%emt 0:34:03]} 16. b4 {[%emt 0:00:43]} Bf5 {[%emt 0:02:59]} 17. Bxf5 {[%emt 0:04:35]} Nxf5 {[%emt 0:00:01]} 18. a4 {[%emt 0:11:49]} h5 {[%emt 0:08:01]} 19. Nd3 {[%emt 0:01:55]} Nd6 {[%emt 0:12:11]} 20. b5 {[%emt 0:00:09]} cxb5 {[%emt 0:00:20]} 21. axb5 {[%emt 0:00:09]} Nc8 {[%emt 0:01:16]} 22. h4 {[%emt 0:02:17]} Be7 {[%emt 0:01:41]} 23. Ndf4 {[%emt 0:01:31]} f5 {[%emt 0:02:38]} 24. g3 {[%emt 0:01:01]} Nb6 {[%emt 0:01:32]} 25. Ra2 {[%emt 0:00:21]} Bd6 {[%emt 0:02:25]} 26. Kg2 {[%emt 0:01:36]} Bxf4 {[%emt 0:01:15]} 27. Nxf4 {[%emt 0:01:40]} Rd7 {[%emt 0:03:15]} 28. Rc1 {[%emt 0:01:31]} Nc4 {[%emt 0:02:56]} 29. Rca1 {[%emt 0:01:45]} b6 {[%emt 0:00:14]} 30. Nd3 {[%emt 0:00:16]} Na5 {[%emt 0:01:08]} 31. Rc1 {[%emt 0:00:50]} Nc4 {[%emt 0:02:29]} 32. Nb4 {[%emt 0:01:44]} Kb7 {[%emt 0:00:33]} 33. Nd3 {[%emt 0:01:12]} Rc7 {[%emt 0:01:02]} 34. Rac2 {[%emt 0:01:10]} Rd7 {[%emt 0:00:52]} 35. Nf4 {[%emt 0:01:05]} Na3 {[%emt 0:00:49]} 36. Rb2 {[%emt 0:00:10]} Nc4 {[%emt 0:00:08]} 37. Rb3 {[%emt 0:00:22]} Na5 {[%emt 0:01:28]} 38. Rbc3 {[%emt 0:00:18]} Kb8 {[%emt 0:00:15]} 39. R1c2 {[%emt 0:00:30]} Kb7 {[%emt 0:00:21]} 40. Rc6 {[%emt 0:00:54]} Nc4 {[%emt 0:00:17]} 41. Nxd5 {[%emt 0:31:50]} Rxd5 {[%emt 0:02:10]} 42. R6xc4 {[%emt 0:00:00]} Rxb5 {[%emt 0:00:11]} 43. Rc7+ {[%emt 0:00:00]} Kb8 {[%emt 0:11:10]} 44. Rxf7 {[%emt 0:00:00]} a5 {[%emt 0:01:11]} 45. Rcc7 {[%emt 0:00:00]} Rb4 {[%emt 0:04:23]} 46. Rb7+ {[%emt 0:00:00]} Ka8 {[%emt 0:00:27]} 47. Rbd7 {[%emt 0:00:00]} 1-0

[Event "Fagernes GM-B 2019"]
[Site "Fagernes"]
[Date "2019.04.18"]
[Round "1"]
[White "Holm, Kristian Stuvik"]
[Black "Von Bahr, Oskar"]
[Result "1/2-1/2"]
[ECO "A33"]
[WhiteElo "2467"]
[BlackElo "2404"]
[Annotator "ChessBase"]
[PlyCount "52"]
[EventDate "2019.04.14"]
[EventType "tourn"]
[EventCountry "NOR"]
[SourceTitle "playchess.com"]
[Source "ChessBase"]
[SourceQuality "1"]
[TimeControl "40/5400+30:1800+30"]

1. Nf3 Nf6 2. c4 c5 3. d4 cxd4 4. Nxd4 Nc6 5. Nc3 e6 6. g3 Qb6 7. Ndb5 Ne5 8. Bf4 Nfg4 9. Qa4 g5 10. Bxe5 Qxf2+ 11. Kd1 Nxe5 12. Nc7+ Kd8 13. Nxa8 Qd4+ 14. Kc2 Nxc4 15. e4 Qd2+ 16. Kb3 Qxb2+ 17. Kxc4 Bg7 18. Qa5+ b6 19. Qxg5+ f6 20. Qb5 Ba6 21. Qxa6 f5 22. Qxa7 Qxc3+ 23. Kb5 Qc6+ 24. Ka6 Qa4+ 25. Kb7 Qc6+ 26. Ka6 Qa4+ 1/2-1/2

[Event "Fagernes GM-B 2019"]
[Site "Fagernes"]
[Date "2019.04.18"]
[Round "1"]
[White "Kazakovskiy, Valeriy"]
[Black "Tryggestad, Andreas Garberg"]
[Result "1/2-1/2"]
[ECO "A34"]
[WhiteElo "2440"]
[BlackElo "2305"]
[Annotator "NA"]
[PlyCount "44"]
[EventDate "2019.04.14"]
[EventType "tourn"]
[EventCountry "NOR"]
[SourceTitle "playchess.com"]
[Source "ChessBase"]
[SourceQuality "1"]
[TimeControl "40/5400+30:1800+30"]

1. Nf3 {[%emt 0:00:00]} Nf6 {[%emt 0:00:00]} 2. c4 {[%emt 0:00:00]} c5 {[%emt 0:00:00]} 3. Nc3 {[%emt 0:00:22]} d5 {[%emt 0:00:00]} 4. cxd5 {[%emt 0:02:17]} Nxd5 {[%emt 0:00:00]} 5. Qa4+ {[%emt 0:01:26]} Bd7 {[%emt 0:08:11]} 6. Qb3 {[%emt 0:02:08]} Nb6 {[%emt 0:00:54]} 7. Ne5 {[%emt 0:04:46]} e6 {[%emt 0:05:23]} 8. g3 Nc6 {[%emt 0:00:30]} 9. Nxd7 Qxd7 {[%emt 0:00:30]} 10. Bg2 Be7 {[%emt 0:00:30]} 11. O-O O-O {[%emt 0:00:30]} 12. d3 Rfd8 {[%emt 0:00:30]} 13. Be3 Rac8 {[%emt 0:00:30]} 14. Qb5 Nd4 {[%emt 0:00:30]} 15. Qxd7 Rxd7 {[%emt 0:00:30]} 16. Rfc1 Nf5 {[%emt 0:00:30]} 17. Bf4 c4 {[%emt 0:00:30]} 18. dxc4 g5 {[%emt 0:00:30]} 19. g4 Nh4 {[%emt 0:00:30]} 20. Bg3 Nxg2 {[%emt 0:00:30]} 21. Kxg2 Rxc4 {[%emt 0:00:30]} 22. Rd1 Bf6 {[%emt 0:00:30]} 1/2-1/2

[Event "Fagernes GM-B 2019"]
[Site "Fagernes"]
[Date "2019.04.18"]
[Round "1"]
[White "Kaasen, Tor Fredrik"]
[Black "Lund, Gunnar"]
[Result "1/2-1/2"]
[ECO "C41"]
[WhiteElo "2385"]
[BlackElo "2271"]
[Annotator "NA"]
[PlyCount "64"]
[EventDate "2019.04.14"]
[EventType "tourn"]
[EventCountry "NOR"]
[SourceTitle "playchess.com"]
[Source "ChessBase"]
[SourceQuality "1"]
[TimeControl "40/5400+30:1800+30"]

1. e4 {[%emt 0:00:00]} d6 {[%emt 0:00:00]} 2. d4 {[%emt 0:00:17]} Nf6 {[%emt 0:00:05]} 3. Nc3 {[%emt 0:00:09]} e5 {[%emt 0:00:16]} 4. Nf3 {[%emt 0:00:33]} exd4 {[%emt 0:00:06]} 5. Nxd4 {[%emt 0:00:43]} Be7 {[%emt 0:00:24]} 6. Bc4 {[%emt 0:06:48]} O-O {[%emt 0:02:10]} 7. O-O {[%emt 0:03:02]} Nbd7 {[%emt 0:11:03]} 8. a4 {[%emt 0:02:22]} a5 {[%emt 0:01:24]} 9. Re1 {[%emt 0:02:01]} Re8 {[%emt 0:02:14]} 10. Nf5 {[%emt 0:02:38]} Bf8 {[%emt 0:08:54]} 11. Bg5 {[%emt 0:03:39]} h6 {[%emt 0:10:49]} 12. Bf4 {[%emt 0:07:05]} Nc5 {[%emt 0:02:44]} 13. Qf3 {[%emt 0:03:39]} Bxf5 {[%emt 0:09:03]} 14. exf5 {[%emt 0:00:12]} Rxe1+ {[%emt 0:01:08]} 15. Rxe1 {[%emt 0:00:08]} c6 {[%emt 0:01:12]} 16. Bf1 {[%emt 0:10:10]} d5 {[%emt 0:02:12]} 17. Be5 {[%emt 0:00:23]} Bd6 {[%emt 0:08:03]} 18. Bd4 {[%emt 0:01:23]} Nce4 {[%emt 0:03:34]} 19. Nxe4 {[%emt 0:09:28]} Nxe4 {[%emt 0:00:51]} 20. Bd3 {[%emt 0:00:48]} Bc5 {[%emt 0:05:49]} 21. Qe3 {[%emt 0:02:53]} Bxd4 {[%emt 0:01:25]} 22. Qxd4 {[%emt 0:00:07]} Nf6 {[%emt 0:01:14]} 23. Qc5 {[%emt 0:01:03]} Qf8 {[%emt 0:02:32]} 24. Qxf8+ {[%emt 0:06:53]} Kxf8 {[%emt 0:00:06]} 25. f3 {[%emt 0:00:29]} Re8 {[%emt 0:00:37]} 26. Rxe8+ {[%emt 0:01:57]} Kxe8 {[%emt 0:01:10]} 27. Kf2 {[%emt 0:00:06]} Ke7 {[%emt 0:00:19]} 28. c3 {[%emt 0:00:23]} Kd6 {[%emt 0:01:07]} 29. Ke3 {[%emt 0:00:19]} Nd7 {[%emt 0:02:24]} 30. g4 {[%emt 0:02:12]} Ne5 {[%emt 0:09:41]} 31. Be2 {[%emt 0:04:14]} Kc5 {[%emt 0:01:38]} 32. b3 {[%emt 0:12:31]} b5 {[%emt 0:11:46]} 1/2-1/2

[Event "Fagernes GM-B 2019"]
[Site "Fagernes"]
[Date "2019.04.18"]
[Round "1"]
[White "Betaneli, Alexander"]
[Black "Rozentalis, Eduardas"]
[Result "0-1"]
[ECO "A11"]
[WhiteElo "2235"]
[BlackElo "2568"]
[Annotator "ChessBase"]
[PlyCount "94"]
[EventDate "2019.04.14"]
[EventType "tourn"]
[EventCountry "NOR"]
[SourceTitle "playchess.com"]
[Source "ChessBase"]
[SourceQuality "1"]
[TimeControl "40/5400+30:1800+30"]

1. c4 {[%emt 0:00:00]} Nf6 {[%emt 0:00:00]} 2. g3 {[%emt 0:00:00]} c6 {[%emt 0:00:21]} 3. Bg2 {[%emt 0:01:40]} d5 {[%emt 0:00:16]} 4. Nf3 {[%emt 0:04:11]} Bg4 {[%emt 0:03:55]} 5. Ne5 {[%emt 0:02:41]} Be6 {[%emt 0:04:09]} 6. cxd5 {[%emt 0:00:12]} Bxd5 {[%emt 0:00:32]} 7. Nf3 {[%emt 0:00:07]} e5 {[%emt 0:01:33]} 8. d3 {[%emt 0:10:03]} e4 {[%emt 0:02:02]} 9. dxe4 {[%emt 0:06:57]} Nxe4 {[%emt 0:00:15]} 10. O-O {[%emt 0:02:58]} Be7 {[%emt 0:03:48]} 11. Nbd2 {[%emt 0:04:08]} Nxd2 {[%emt 0:08:29]} 12. Bxd2 {[%emt 0:01:10]} Nd7 {[%emt 0:00:40]} 13. Qc2 {[%emt 0:07:38]} Nf6 {[%emt 0:03:31]} 14. Rfd1 {[%emt 0:04:58]} O-O {[%emt 0:12:10]} 15. Bc3 {[%emt 0:08:18]} Ne4 {[%emt 0:02:26]} 16. Bd4 {[%emt 0:11:10]} f5 {[%emt 0:07:52]} 17. Be3 {[%emt 0:11:07]} Bf6 {[%emt 0:06:51]} 18. Nd2 {[%emt 0:05:20]} Qe8 {[%emt 0:01:16]} 19. Nxe4 {[%emt 0:00:55]} fxe4 {[%emt 0:00:17]} 20. Bd4 {[%emt 0:03:02]} Qe6 {[%emt 0:03:00]} 21. e3 {[%emt 0:00:56]} Be7 {[%emt 0:02:05]} 22. b3 {[%emt 0:02:04]} Rf7 {[%emt 0:00:59]} 23. Rd2 {[%emt 0:01:46]} b6 {[%emt 0:01:19]} 24. Bc3 {[%emt 0:01:28]} Raf8 {[%emt 0:01:15]} 25. Rf1 {[%emt 0:02:16]} h5 {[%emt 0:01:12]} 26. Rd4 {[%emt 0:01:40]} Bc5 {[%emt 0:01:26]} 27. Rd2 {[%emt 0:01:55]} h4 {[%emt 0:01:32]} 28. b4 {[%emt 0:01:18]} Bd6 {[%emt 0:04:11]} 29. Rfd1 {[%emt 0:01:02]} b5 {[%emt 0:02:00]} 30. Qb2 {[%emt 0:01:24]} Qe7 {[%emt 0:05:37]} 31. a3 {[%emt 0:00:48]} Qg5 {[%emt 0:01:12]} 32. Bd4 {[%emt 0:01:24]} a6 {[%emt 0:08:31]} 33. Bc5 {[%emt 0:00:20]} Bxc5 {[%emt 0:02:19]} 34. bxc5 {[%emt 0:00:02]} hxg3 {[%emt 0:00:31]} 35. hxg3 {[%emt 0:00:09]} Rf6 {[%emt 0:01:08]} 36. Qc2 {[%emt 0:01:42]} Qe5 {[%emt 0:01:10]} 37. Rd4 {[%emt 0:00:41]} Rxf2 {[%emt 0:01:41]} 38. Qxf2 {[%emt 0:00:05]} Rxf2 {[%emt 0:00:04]} 39. Kxf2 {[%emt 0:00:04]} a5 {[%emt 0:00:16]} 40. Bh3 {[%emt 0:01:23]} Qf6+ {[%emt 0:01:22]} 41. Kg1 {[%emt 0:07:12]} Qf3 {[%emt 0:01:08]} 42. Kh2 {[%emt 0:00:19]} Qxe3 {[%emt 0:02:59]} 43. Bg2 {[%emt 0:03:26]} Qc3 {[%emt 0:01:35]} 44. Rxd5 {[%emt 0:00:51]} cxd5 {[%emt 0:00:15]} 45. Rxd5 {[%emt 0:00:02]} e3 {[%emt 0:00:16]} 46. c6 {[%emt 0:01:15]} e2 {[%emt 0:00:35]} 47. Rd8+ {[%emt 0:00:04]} Kh7 {[%emt 0:01:52]} 0-1

[Event "Fagernes GM-B 2019"]
[Site "Fagernes"]
[Date "2019.04.15"]
[Round "2.22"]
[White "Tryggestad, Andreas Garberg"]
[Black "Lund, Gunnar"]
[Result "1/2-1/2"]
[ECO "C41"]
[WhiteElo "2305"]
[BlackElo "2271"]
[Annotator "NA RC"]
[PlyCount "46"]
[EventDate "2019.04.14"]
[EventType "tourn"]
[EventCountry "NOR"]
[SourceTitle "playchess.com"]
[Source "ChessBase"]
[SourceQuality "1"]
[TimeControl "40/5400+30:1800+30"]

1. d4 {[%emt 0:00:00]} d6 {[%emt 0:02:03]} 2. e4 {[%emt 0:00:00]} Nf6 {[%emt 0:00:04]} 3. Nc3 {[%emt 0:00:05]} e5 {[%emt 0:00:06]} 4. Nf3 {[%emt 0:00:05]} exd4 5. Nxd4 {[%emt 0:00:05]} Be7 {[%emt 0:00:13]} 6. Bf4 {[%emt 0:00:04]} O-O {[%emt 0:00:13]} 7. Qd2 {[%emt 0:00:04]} Nc6 {[%emt 0:02:25]} 8. O-O-O {[%emt 0:00:30]} Nxd4 {[%emt 0:00:30]} 9. Qxd4 {[%emt 0:00:30]} Be6 {[%emt 0:00:30]} 10. f3 {[%emt 0:00:30]} a6 {[%emt 0:00:30]} 11. g4 {[%emt 0:00:30] C41: Philidor Defence} Nd7 {[%emt 0:00:30]} (11... b5 12. Qf2 b4 13. Nd5 Nxd5 14. exd5 Bd7 15. h4 a5 16. Bd3 c5 17. dxc6 Bxc6 18. g5 a4 {½-½ (43) Maze,S (2582)-Demuth,A (2537) Sitges 2015}) 12. h4 {[%emt 0:00:30]} b5 {[%emt 0:00:30]} 13. Qd2 {[%emt 0:00:30]} Ne5 {[%emt 0:00:30]} 14. Qf2 {[%emt 0:00:30]} Qb8 $146 {[%emt 0:00:30]} ({Predecessor:} 14... f6 15. Kb1 c6 16. Ne2 Qa5 17. Nc1 Qc7 18. Qg3 d5 19. g5 Rad8 20. Bh3 Bxh3 21. Qxh3 Qd7 22. Qg2 Qe6 23. Rhe1 {½-½ (23) Boschma,B (2247)-Serfling,R (2234) ICCF email 2007}) 15. g5 {[%emt 0:00:30]} c6 {[%emt 0:00:30]} 16. Kb1 {[%emt 0:00:30]} a5 {[%emt 0:00:30]} 17. Bc1 {[%emt 0:00:30]} a4 {[%emt 0:00:30]} 18. f4 {[%emt 0:00:30]} b4 {[%emt 0:00:30]} 19. Ne2 {[%emt 0:00:30] [#]} Bxa2+ $1 $17 {[%emt 0:00:30] and life is bright.} (19... Bc8 $2 {[%emt 1:28:56][%mdl 8192]}) 20. Ka1 {[%emt 0:00:30]} (20. Kxa2 $2 b3+ 21. Kb1 bxc2+ 22. Kxc2 Qb3+ 23. Kb1 Nd3 $19) 20... Bb3 {[%emt 0:00:30]} (20... b3) 21. Kb1 {[%emt 0:00:30]} Ba2+ {[%emt 0:00:30]} 22. Ka1 {[%emt 0:00:30]} Bb3 {[%emt 0:00:30]} 23. Kb1 $11 {[%emt 0:00:30]} (23. cxb3 {leads to mate.} axb3+ 24. Kb1 {[#]} Ra1+ $1 {[%mdl 576] Decoy, Clearance} 25. Kxa1 Qa8+ 26. Qa7 Qxa7+ 27. Kb1 Qa2#) ({Don't play} 23. fxe5 Bxc2 {[%mdl 64] Double Attack} 24. Nc3 Bb3 $17) 23... Ba2+ {[%emt 0:00:30]} 1/2-1/2

[Event "Fagernes GM-B 2019"]
[Site "Fagernes"]
[Date "2019.04.15"]
[Round "2.23"]
[White "Rozentalis, Eduardas"]
[Black "Kaasen, Tor Fredrik"]
[Result "1-0"]
[ECO "C68"]
[WhiteElo "2568"]
[BlackElo "2385"]
[Annotator "ChessBase"]
[PlyCount "91"]
[EventDate "2019.04.14"]
[EventType "tourn"]
[EventCountry "NOR"]
[SourceTitle "playchess.com"]
[Source "ChessBase"]
[SourceQuality "1"]
[TimeControl "40/5400+30:1800+30"]

1. e4 {[%emt 0:00:00]} e5 {[%emt 0:00:00]} 2. Nf3 {[%emt 0:00:09]} Nc6 {[%emt 0:00:00]} 3. Bb5 {[%emt 0:00:30]} a6 4. Bxc6 dxc6 {[%emt 0:00:20]} 5. O-O {[%emt 0:01:40]} Bg4 {[%emt 0:00:34]} 6. h3 {[%emt 1:30:41]} h5 7. d3 {[%emt 0:00:00]} Qf6 {[%emt 0:00:34]} 8. Be3 {[%emt 0:00:00]} Bxf3 {[%emt 0:00:58]} 9. Qxf3 {[%emt 0:00:00]} Qxf3 {[%emt 0:00:09]} 10. gxf3 {[%emt 0:00:00]} f5 {[%emt 0:00:11]} 11. f4 {[%emt 0:00:00]} fxe4 {[%emt 0:01:26]} 12. dxe4 {[%emt 0:00:00]} exf4 {[%emt 0:00:31]} 13. Bxf4 {[%emt 0:00:00]} O-O-O {[%emt 0:00:16]} 14. Nd2 {[%emt 0:00:00]} Nh6 {[%emt 0:03:28]} 15. Nf3 {[%emt 0:00:00]} Be7 {[%emt 0:04:02]} 16. Kg2 {[%emt 0:00:00]} Nf7 {[%emt 0:02:35]} 17. Rad1 {[%emt 0:00:00]} g5 {[%emt 0:04:33]} 18. Bg3 {[%emt 0:00:00]} Bd6 {[%emt 0:08:53]} 19. Nd4 {[%emt 0:00:00]} h4 {[%emt 0:14:10]} 20. Bxd6 {[%emt 0:00:00]} Nxd6 {[%emt 0:00:56]} 21. Rfe1 {[%emt 0:00:00]} Rhe8 {[%emt 0:03:21]} 22. f3 {[%emt 0:00:00]} Nc4 {[%emt 0:01:51]} 23. b3 {[%emt 0:00:00]} Nb2 {[%emt 0:08:52]} 24. Rd2 {[%emt 0:00:00]} c5 {[%emt 0:00:16]} 25. c3 {[%emt 0:00:00]} cxd4 {[%emt 0:02:26]} 26. cxd4 {[%emt 0:00:00]} Re7 {[%emt 0:07:46]} 27. Kf2 {[%emt 0:00:00]} b5 {[%emt 0:15:29]} 28. Ke3 {[%emt 0:00:00]} c5 {[%emt 0:01:35]} 29. Rc1 {[%emt 0:00:00]} Rc7 {[%emt 0:06:43]} 30. d5 {[%emt 0:00:00]} c4 {[%emt 0:04:59]} 31. Rxb2 {[%emt 0:00:00]} c3 {[%emt 0:00:18]} 32. Rg2 {[%emt 0:00:00]} Rg8 {[%emt 0:00:05]} 33. b4 {[%emt 0:00:00]} Kb7 {[%emt 0:01:19]} 34. e5 {[%emt 0:02:08]} Rc4 {[%emt 0:01:07]} 35. Rg4 {[%emt 0:00:24]} Rgc8 {[%emt 0:00:17]} 36. Kd3 {[%emt 0:00:55]} Rf8 {[%emt 0:01:06]} 37. Rxc4 {[%emt 0:03:16]} bxc4+ {[%emt 0:00:04]} 38. Ke3 {[%emt 0:00:58]} Rf5 {[%emt 0:00:18]} 39. Rxc3 {[%emt 0:00:14]} Rxe5+ {[%emt 0:00:28]} 40. Kd4 {[%emt 0:00:05]} Re2 {[%emt 0:01:58]} 41. Rxc4 {[%emt 0:30:32]} Rxa2 {[%emt 0:30:54]} 42. d6 {[%emt 0:00:33]} Rd2+ {[%emt 0:03:34]} 43. Ke5 {[%emt 0:01:35]} Re2+ {[%emt 0:00:51]} 44. Kd5 {[%emt 0:02:31]} Rd2+ {[%emt 0:00:47]} 45. Ke6 {[%emt 0:00:13]} Re2+ {[%emt 0:00:11]} 46. Re4 {[%emt 0:00:22]} 1-0

[Event "Fagernes GM-B 2019"]
[Site "Fagernes"]
[Date "2019.04.15"]
[Round "2.24"]
[White "Levin, Felix"]
[Black "Betaneli, Alexander"]
[Result "0-1"]
[ECO "A13"]
[WhiteElo "2476"]
[BlackElo "2235"]
[Annotator "ChessBase"]
[PlyCount "118"]
[EventDate "2019.04.14"]
[EventType "tourn"]
[EventCountry "NOR"]
[SourceTitle "playchess.com"]
[Source "ChessBase"]
[SourceQuality "1"]
[TimeControl "40/5400+30:1800+30"]

1. Nf3 {[%emt 1:30:30]} d5 2. c4 e6 3. e3 Nf6 4. b3 b6 5. cxd5 {[%emt 0:02:00]} exd5 {[%emt 1:32:30]} 6. Nc3 {[%emt 0:00:30]} c6 {[%emt 0:00:30]} 7. Bb2 {[%emt 0:00:30]} Bd6 {[%emt 0:00:30]} 8. Qc2 {[%emt 0:00:30]} O-O {[%emt 0:00:30]} 9. d4 {[%emt 0:00:30]} Qe7 {[%emt 0:00:30]} 10. Bd3 {[%emt 0:00:30]} Ba6 {[%emt 0:00:30]} 11. Bxa6 {[%emt 0:00:30]} Nxa6 {[%emt 0:00:30]} 12. O-O {[%emt 0:00:30]} Rac8 {[%emt 0:00:30]} 13. a3 {[%emt 0:00:30]} Rfe8 {[%emt 0:00:30]} 14. b4 {[%emt 0:00:30]} Nb8 {[%emt 0:00:30]} 15. Qb3 {[%emt 0:00:30]} a6 {[%emt 0:00:30]} 16. Na4 {[%emt 0:00:30]} Nbd7 {[%emt 0:00:30]} 17. Rac1 {[%emt 0:00:30]} Ne4 {[%emt 0:00:30]} 18. Rc2 {[%emt 0:00:30]} b5 {[%emt 0:00:30]} 19. Nc5 {[%emt 0:00:30]} Ndxc5 {[%emt 0:00:30]} 20. dxc5 {[%emt 0:00:30]} Bb8 {[%emt 0:00:30]} 21. g3 {[%emt 0:00:30]} Qd7 {[%emt 0:00:30]} 22. Nd4 {[%emt 0:00:30]} Be5 {[%emt 0:00:30]} 23. f3 {[%emt 0:00:30]} Bxd4 {[%emt 0:00:30]} 24. Bxd4 {[%emt 0:00:30]} Ng5 {[%emt 0:00:30]} 25. h4 {[%emt 0:00:30]} Ne6 {[%emt 0:00:30]} 26. Bb2 {[%emt 0:00:30]} f5 {[%emt 0:00:30]} 27. Qd3 {[%emt 0:00:30]} Qf7 {[%emt 0:00:30]} 28. Kh2 {[%emt 0:00:30]} Re7 {[%emt 0:00:30]} 29. Re2 {[%emt 0:00:30]} Rce8 {[%emt 0:00:30]} 30. Rfe1 {[%emt 0:00:30]} Qh5 {[%emt 0:00:30]} 31. Kg2 {[%emt 0:00:30]} Nf8 {[%emt 0:00:30]} 32. Bd4 {[%emt 0:00:30]} Re6 {[%emt 0:00:30]} 33. Qc3 {[%emt 0:00:30]} f4 {[%emt 0:00:30]} 34. Rh1 {[%emt 0:00:30]} Qg6 {[%emt 0:00:30]} 35. g4 {[%emt 0:00:30]} R8e7 {[%emt 0:00:30]} 36. h5 {[%emt 0:00:30]} Qg5 {[%emt 0:00:30]} 37. Qd3 {[%emt 0:00:30]} fxe3 {[%emt 0:00:30]} 38. Rhe1 {[%emt 0:00:30]} Re4 {[%emt 0:00:30]} 39. Rxe3 {[%emt 0:00:30]} Ne6 {[%emt 0:00:30]} 40. Rxe4 {[%emt 0:00:30]} dxe4 {[%emt 0:00:30]} 41. Rxe4 {[%emt 0:30:30]} Nf4+ {[%emt 0:30:30]} 42. Rxf4 {[%emt 0:00:30]} Qxf4 {[%emt 0:00:30]} 43. Bf2 {[%emt 0:00:30]} Rf7 {[%emt 0:00:30]} 44. Bg3 {[%emt 0:00:30]} Qc4 {[%emt 0:00:30]} 45. Qe3 {[%emt 0:00:30]} Qa2+ {[%emt 0:00:30]} 46. Kh3 {[%emt 0:00:30]} Qd5 {[%emt 0:00:30]} 47. Bf4 {[%emt 0:00:30]} Rf6 {[%emt 0:00:30]} 48. Qe8+ {[%emt 0:00:30]} Rf8 {[%emt 0:00:30]} 49. Qe3 {[%emt 0:00:30]} Qf7 {[%emt 0:00:30]} 50. Kg3 {[%emt 0:00:30]} Re8 {[%emt 0:00:30]} 51. Qd2 {[%emt 0:00:30]} Qe6 {[%emt 0:00:30]} 52. Qd3 {[%emt 0:00:30]} h6 {[%emt 0:00:30]} 53. Kh3 {[%emt 0:00:30]} Qe2 {[%emt 0:00:30]} 54. Qb3+ {[%emt 0:00:30]} Kh8 {[%emt 0:00:30]} 55. g5 {[%emt 0:00:30]} hxg5 {[%emt 0:00:30]} 56. Bxg5 {[%emt 0:00:30]} Qf1+ {[%emt 0:00:30]} 57. Kg3 {[%emt 0:00:30]} Qg1+ {[%emt 0:00:30]} 58. Kh4 {[%emt 0:00:30]} Qh2+ {[%emt 0:00:30]} 59. Kg4 {[%emt 0:00:30]} Qg2+ {[%emt 0:00:30]} 0-1

[Event "Fagernes GM-B 2019"]
[Site "Fagernes"]
[Date "2019.04.15"]
[Round "2.25"]
[White "Von Bahr, Oskar"]
[Black "Greenfeld, Alon"]
[Result "0-1"]
[ECO "A30"]
[WhiteElo "2404"]
[BlackElo "2514"]
[Annotator "ChessBase"]
[PlyCount "80"]
[EventDate "2019.04.14"]
[EventType "tourn"]
[EventCountry "NOR"]
[SourceTitle "playchess.com"]
[Source "ChessBase"]
[SourceQuality "1"]
[TimeControl "40/5400+30:1800+30"]

1. Nf3 {[%emt 1:30:30]} Nf6 {[%emt 0:15:01]} 2. c4 {[%emt 0:00:00]} c5 {[%emt 0:04:32]} 3. Nc3 {[%emt 0:00:00]} e6 {[%emt 0:04:40]} 4. g3 {[%emt 0:00:00]} b6 {[%emt 0:01:03]} 5. Bg2 {[%emt 0:00:00]} Bb7 {[%emt 0:00:06]} 6. O-O {[%emt 0:00:00]} Be7 {[%emt 0:00:51]} 7. b3 {[%emt 0:00:00]} O-O {[%emt 0:03:04]} 8. Bb2 {[%emt 0:00:00]} d6 {[%emt 0:01:53]} 9. e3 {[%emt 0:00:00]} Nbd7 {[%emt 0:01:41]} 10. Qe2 {[%emt 0:00:00]} a6 {[%emt 0:11:20]} 11. Rad1 {[%emt 0:00:00]} b5 {[%emt 0:02:38]} 12. d3 {[%emt 0:00:00]} Qb6 {[%emt 0:05:26]} 13. Nh4 {[%emt 0:00:00]} Bxg2 {[%emt 0:02:18]} 14. Kxg2 {[%emt 0:00:00]} Qc6+ {[%emt 0:12:29]} 15. e4 {[%emt 0:00:00]} Rfe8 {[%emt 0:06:10]} 16. Kg1 {[%emt 0:00:00]} Nb6 {[%emt 0:08:09]} 17. f4 {[%emt 0:00:00]} b4 {[%emt 0:01:38]} 18. Nb1 {[%emt 0:00:00]} a5 {[%emt 0:00:29]} 19. g4 {[%emt 0:00:00]} a4 {[%emt 0:01:38]} 20. g5 {[%emt 0:00:00]} Nfd7 {[%emt 0:00:34]} 21. Qg4 {[%emt 0:00:00]} axb3 {[%emt 0:01:08]} 22. axb3 {[%emt 0:00:00]} Ra2 {[%emt 0:02:30]} 23. Rf2 {[%emt 0:00:00]} g6 {[%emt 0:00:19]} 24. Rdf1 {[%emt 0:00:00]} d5 {[%emt 0:04:20]} 25. f5 {[%emt 0:00:00]} exf5 {[%emt 0:01:17]} 26. exf5 {[%emt 0:00:00]} d4 {[%emt 0:01:35]} 27. Re1 {[%emt 0:00:00]} Qd6 {[%emt 0:02:04]} 28. Nd2 {[%emt 0:09:23]} Ne5 {[%emt 0:02:00]} 29. Qg3 {[%emt 0:00:18]} Nbd7 {[%emt 0:00:45]} 30. Ne4 {[%emt 0:00:13]} Qa6 {[%emt 0:00:39]} 31. Rfe2 {[%emt 0:01:49]} Ra8 {[%emt 0:00:33]} 32. f6 {[%emt 0:01:52]} Bf8 {[%emt 0:00:42]} 33. Ng2 {[%emt 0:00:18]} h6 {[%emt 0:01:10]} 34. h4 {[%emt 0:00:12]} Qe6 {[%emt 0:00:12]} 35. Nf4 {[%emt 0:01:18]} Qg4 {[%emt 0:00:09]} 36. Qxg4 {[%emt 0:00:25]} Nxg4 {[%emt 0:00:02]} 37. Nf2 {[%emt 0:01:29]} Ne3 {[%emt 0:00:48]} 38. Ng2 {[%emt 0:01:13]} Ne5 {[%emt 0:00:28]} 39. Kh1 {[%emt 0:00:00]} Nf5 {[%emt 0:01:36]} 40. Rxe5 {[%emt 0:00:23]} Rxb2 {[%emt 0:00:02]} 0-1